bitfinex/quotes_BTCUSD_20241203
["timestamp","ask_amount","ask_price","bid_price","bid_amount"]
[1733215168132,0.209338,95539.0,95536.0,0.2821931]
[1733215168960,0.418677,95539.0,95536.0,0.2821931]
[1733215169178,0.418677,95539.0,95534.0,0.2821931]
[1733215169398,0.418677,95539.0,95536.0,0.002]
[1733215170503,0.418677,95539.0,95536.0,0.003]
[1733215171367,0.418677,95539.0,95536.0,0.001]
[1733215171789,0.418677,95539.0,95536.0,0.002]
[1733215172215,0.209338,95539.0,95536.0,0.002]
[1733215173079,0.15165658,95550.0,95536.0,0.002]
[1733215173302,0.209333,95542.0,95537.0,0.00185241]
[1733215174614,0.38071316,95550.0,95534.0,0.2821931]
[1733215174901,0.209342,95537.0,95536.0,0.002]
[1733215175384,0.209342,95537.0,95532.0,0.2821931]
[1733215175862,0.209342,95537.0,95533.0,0.2821931]
[1733215176105,0.15165658,95542.0,95533.0,0.2821931]
[1733215176350,0.15165658,95542.0,95534.0,0.28404564]
[1733215176351,0.36098858,95542.0,95534.0,0.28404564]
[1733215176816,0.209332,95542.0,95534.0,0.28404564]
[1733215178921,0.209332,95542.0,95534.0,0.28504564]
[1733215179882,0.209321,95547.0,95535.0,0.023]
[1733215180102,0.209321,95547.0,95537.0,0.023]
[1733215180360,0.0774,95550.0,95538.0,0.00185242]
[1733215180579,0.15165658,95550.0,95538.0,0.21119142]
[1733215180818,0.15165658,95550.0,95538.0,0.49338452]
[1733215181037,0.003,95547.0,95540.0,0.2821931]
[1733215181251,0.004,95547.0,95541.0,0.00185239]
[1733215181468,0.001,95547.0,95542.0,0.00185239]
[1733215181681,0.0468,95554.0,95542.0,0.00185239]
[1733215181682,0.209306,95554.0,95543.0,0.023]
[1733215181894,0.209315,95550.0,95545.0,0.023]
[1733215182114,0.001,95547.0,95545.0,0.023]
[1733215182531,0.001,95547.0,95544.0,0.00185227]
[1733215182532,0.209323,95546.0,95544.0,0.00185227]
[1733215182754,0.209315,95550.0,95540.0,0.023]
[1733215183203,0.209315,95550.0,95542.0,0.023]
[1733215183406,0.213315,95550.0,95542.0,0.02485235]
[1733215183633,0.209315,95550.0,95542.0,0.02485235]
[1733215184044,0.213315,95550.0,95542.0,0.02485235]
[1733215184454,0.001,95546.0,95542.0,0.02485235]
[1733215184662,0.210324,95546.0,95542.0,0.02485235]
[1733215184862,0.210324,95546.0,95540.0,0.023]
[1733215185069,0.210324,95546.0,95538.0,0.28209274]
[1733215185339,0.209324,95546.0,95539.0,0.00185239]
[1733215186364,0.209324,95546.0,95538.0,0.00185245]
[1733215186791,0.211324,95546.0,95538.0,0.00185245]
[1733215186996,0.209324,95546.0,95538.0,0.00185245]
[1733215187457,0.210324,95546.0,95537.0,0.28209274]
[1733215187667,0.210324,95546.0,95536.0,0.28209274]
[1733215187874,0.210324,95546.0,95537.0,0.28394519]
[1733215188080,0.209336,95541.0,95537.0,0.28394519]
[1733215188293,0.209336,95541.0,95535.0,0.023]
[1733215188500,0.209336,95541.0,95534.0,0.02571589]
[1733215188933,0.209336,95541.0,95534.0,0.0238634]
[1733215189134,0.209336,95541.0,95536.0,0.023]
[1733215189343,0.209336,95541.0,95534.0,0.30595614]
[1733215189547,0.209336,95541.0,95534.0,0.0238634]
[1733215190402,0.209336,95541.0,95534.0,0.0257159]
[1733215190850,0.209336,95540.0,95534.0,0.0008634]
[1733215191266,0.209336,95540.0,95538.0,0.0008634]
[1733215193017,0.209336,95540.0,95538.0,0.0018634]
[1733215193233,0.209336,95540.0,95538.0,0.0028634]
[1733215194123,0.2816,95539.0,95538.0,0.0028634]
[1733215194337,0.32618819,95539.0,95538.0,0.0028634]
[1733215194557,0.32566302,95539.0,95538.0,0.0028634]
[1733215194986,0.32566302,95539.0,95538.0,0.0018634]
[1733215195415,0.32666302,95539.0,95538.0,0.0018634]
[1733215196093,0.32666302,95539.0,95538.0,0.0008634]
[1733215196341,0.32866302,95539.0,95538.0,0.0008634]
[1733215200650,0.37536302,95539.0,95538.0,0.0008634]
[1733215202478,0.52536302,95539.0,95538.0,0.0008634]
[1733215202922,0.52536302,95539.0,95534.0,0.0008634]
[1733215203143,0.39406302,95535.0,95534.0,0.0008634]
[1733215203358,0.4612,95531.0,95530.0,0.0005858]
[1733215204725,0.50526302,95531.0,95530.0,0.0005858]
[1733215205600,0.51126302,95531.0,95530.0,0.0015858]
[1733215205845,0.51181119,95531.0,95530.0,0.0015858]
[1733215206067,0.52081119,95531.0,95530.0,0.0025858]
[1733215206533,0.52081119,95531.0,95530.0,8e-07]
[1733215207411,0.359358,95530.0,95501.0,0.0046024]
[1733215207637,0.40938,95520.0,95501.0,0.0046024]
[1733215207851,0.49128,95520.0,95501.0,0.0046024]
[1733215208329,0.54068,95520.0,95501.0,0.0046024]
[1733215208985,0.73774302,95520.0,95501.0,0.0046024]
[1733215209655,0.73774302,95520.0,95519.0,0.0018639]
[1733215210122,0.73774302,95520.0,95519.0,0.0008639]
[1733215210344,0.209419,95502.0,95500.0,0.2]
[1733215210647,0.51906302,95501.0,95500.0,0.2]
[1733215210831,0.51962258,95501.0,95500.0,0.2]
[1733215211043,0.52007168,95501.0,95500.0,0.2]
[1733215211699,0.52007168,95501.0,95500.0,0.20013513]
[1733215212342,0.52907168,95501.0,95500.0,0.20013513]
[1733215212554,0.52806302,95501.0,95500.0,0.20013513]
[1733215213672,0.53706302,95501.0,95500.0,0.20013513]
[1733215214173,0.52806302,95501.0,95500.0,0.20013513]
[1733215214389,0.54506302,95501.0,95500.0,0.20013513]
[1733215214815,0.39506302,95501.0,95500.0,0.20013513]
[1733215215024,0.38706302,95501.0,95500.0,0.20013513]
[1733215215235,0.39506302,95501.0,95500.0,0.20013513]
[1733215215445,0.27006302,95501.0,95500.0,0.20013513]
[1733215215666,0.25206302,95501.0,95500.0,0.20013513]
[1733215215873,0.26106302,95501.0,95500.0,0.20013513]
[1733215216310,0.25206302,95501.0,95500.0,0.20013513]
[1733215216527,0.26106302,95501.0,95500.0,0.20013513]
[1733215216752,0.25206302,95501.0,95500.0,0.20013513]
[1733215217227,0.26106302,95501.0,95500.0,0.20013513]
[1733215217441,0.25306302,95501.0,95500.0,0.20013513]
[1733215217901,0.25906302,95501.0,95500.0,0.20013513]
[1733215218329,0.25306302,95501.0,95500.0,0.20013513]
[1733215218547,0.209,95501.0,95500.0,0.20013513]
[1733215218760,0.204,95501.0,95500.0,0.20013513]
[1733215219873,0.204,95501.0,95500.0,0.20113513]
[1733215219874,0.213,95501.0,95500.0,0.20113513]
[1733215220306,0.25706302,95501.0,95500.0,0.20113513]
[1733215220537,0.24406302,95501.0,95500.0,0.20013513]
[1733215221013,0.38076302,95501.0,95500.0,0.20113513]
[1733215221237,0.37276302,95501.0,95500.0,0.20013513]
[1733215221502,0.37676302,95501.0,95500.0,0.20013513]
[1733215221712,0.38476302,95501.0,95500.0,0.20113513]
[1733215222148,0.25206302,95501.0,95500.0,0.20113513]
[1733215222363,0.25606302,95501.0,95500.0,0.20113513]
[1733215222804,0.24806302,95501.0,95500.0,0.20013513]
[1733215223012,0.24806302,95501.0,95500.0,0.20113513]
[1733215223223,0.25606302,95501.0,95500.0,0.20113513]
[1733215223431,0.24806302,95501.0,95500.0,0.20013513]
[1733215223638,0.25606302,95501.0,95500.0,0.20113513]
[1733215223870,0.25206302,95501.0,95500.0,0.20113513]
[1733215224089,0.25206302,95501.0,95500.0,0.20013513]
[1733215224090,0.24806302,95501.0,95500.0,0.20013513]
[1733215224322,0.25606302,95501.0,95500.0,0.20113513]
[1733215224552,0.24806302,95501.0,95500.0,0.20013513]
[1733215225214,0.24406302,95501.0,95500.0,0.20013513]
[1733215225432,0.24806302,95501.0,95500.0,0.20013513]
[1733215226130,0.2,95496.0,95495.0,0.0008641]
[1733215226342,0.2,95496.0,95495.0,0.00104025]
[1733215227632,0.205,95496.0,95495.0,0.00204025]
[1733215228101,0.202,95496.0,95495.0,0.00104025]
[1733215228336,0.002,95496.0,95495.0,0.08284025]
[1733215228559,0.209426,95499.0,95495.0,0.08284025]
[1733215228777,0.007,95496.0,95495.0,0.08384025]
[1733215229698,0.007,95496.0,95495.0,0.13004025]
[1733215229941,0.002,95496.0,95495.0,0.13089356]
[1733215230153,0.29986487,95500.0,95496.0,0.209432]
[1733215230372,0.007,95499.0,95498.0,0.209428]
[1733215230588,0.29986487,95500.0,95497.0,0.00185325]
[1733215230812,0.29986487,95500.0,95499.0,0.28062681]
[1733215231539,0.001,95499.0,95498.0,0.006]
[1733215231760,0.29986487,95500.0,95497.0,0.00485326]
[1733215231979,0.29986487,95500.0,95499.0,0.28072335]
[1733215232204,0.29986487,95500.0,95498.0,0.28072335]
[1733215232421,0.29986487,95500.0,95499.0,0.28072335]
[1733215232631,0.29986487,95500.0,95497.0,0.003]
[1733215232632,0.29818536,95500.0,95497.0,0.003]
[1733215232847,0.29818536,95500.0,95497.0,0.00485326]
[1733215233064,0.29818536,95500.0,95497.0,0.00185326]
[1733215233290,0.29818536,95500.0,95499.0,0.005]
[1733215233515,0.29818536,95500.0,95499.0,0.008]
[1733215233736,0.29818536,95500.0,95499.0,0.003]
[1733215233955,0.29818536,95500.0,95495.0,0.13089351]
[1733215234410,0.29818536,95500.0,95497.0,0.007]
[1733215234844,0.29818536,95500.0,95496.0,0.00185326]
[1733215235060,0.29818536,95500.0,95499.0,0.004]
[1733215236412,0.29818536,95500.0,95495.0,0.12904025]
[1733215236413,0.29818536,95500.0,95495.0,0.5441683]
[1733215236632,0.29818536,95500.0,95497.0,0.41912805]
[1733215236860,0.29818536,95500.0,95497.0,0.004]
[1733215237068,0.29818536,95500.0,95497.0,0.00385326]
[1733215237284,0.29818536,95500.0,95499.0,0.003]
[1733215237500,0.29818536,95500.0,95499.0,0.002]
[1733215237940,0.29818536,95500.0,95497.0,0.41698131]
[1733215238153,0.29818536,95500.0,95497.0,0.42098131]
[1733215238350,0.29818536,95500.0,95497.0,0.42398131]
[1733215238554,0.29818536,95500.0,95498.0,0.41512805]
[1733215238555,0.209426,95499.0,95498.0,0.41512805]
[1733215238721,0.209426,95499.0,95497.0,0.42212805]
[1733215238955,0.209426,95499.0,95497.0,0.007]
[1733215239357,0.418852,95499.0,95495.0,0.08284025]
[1733215239748,0.418852,95499.0,95498.0,0.003]
[1733215240189,0.418852,95499.0,95497.0,0.001]
[1733215240439,0.418852,95499.0,95495.0,0.00104025]
[1733215240661,0.418852,95499.0,95495.0,0.00204025]
[1733215240883,0.209426,95499.0,95498.0,0.001]
[1733215241807,0.209426,95499.0,95497.0,0.001]
[1733215242246,0.209426,95499.0,95498.0,0.28175909]
[1733215242516,0.209426,95499.0,95497.0,0.28275909]
[1733215242748,0.209426,95499.0,95497.0,0.28175909]
[1733215242968,0.209426,95499.0,95498.0,0.002]
[1733215243405,0.209426,95499.0,95495.0,0.00104025]
[1733215243406,0.209426,95499.0,95496.0,0.28175909]
[1733215243632,0.421852,95499.0,95496.0,0.28175909]
[1733215243859,0.418852,95499.0,95497.0,0.001]
[1733215244284,0.418852,95499.0,95498.0,0.001]
[1733215244495,0.418852,95499.0,95496.0,0.001]
[1733215244906,0.418852,95499.0,95496.0,0.002]
[1733215245936,0.29991316,95500.0,95496.0,0.002]
[1733215245937,0.29991316,95500.0,95496.0,0.001]
[1733215246378,0.29991316,95500.0,95498.0,0.001]
[1733215246579,0.209426,95499.0,95498.0,0.001]
[1733215246734,0.29991316,95500.0,95498.0,0.001]
[1733215247142,0.001,95499.0,95498.0,0.001]
[1733215247550,0.001,95499.0,95495.0,0.00104025]
[1733215247551,0.29991316,95500.0,95495.0,0.00104025]
[1733215247753,0.29991316,95500.0,95498.0,0.002]
[1733215247963,0.50933716,95500.0,95498.0,0.004]
[1733215249240,0.50933716,95500.0,95498.0,0.002]
[1733215249924,0.50933716,95500.0,95495.0,0.00104025]
[1733215250151,0.51033716,95500.0,95495.0,0.00304025]
[1733215250575,0.51033716,95500.0,95495.0,0.00104025]
[1733215250576,0.209429,95498.0,95495.0,0.00104025]
[1733215250791,0.418858,95498.0,95495.0,0.00104025]
[1733215251882,0.46292102,95498.0,95495.0,0.00104025]
[1733215252085,0.209432,95496.0,95495.0,0.00104025]
[1733215252515,0.45349502,95496.0,95495.0,0.00104025]
[1733215253577,0.45749502,95496.0,95495.0,0.00104025]
[1733215253808,0.45349502,95496.0,95495.0,0.00104025]
[1733215254053,0.45849502,95496.0,95495.0,0.00204025]
[1733215254490,0.45349502,95496.0,95495.0,0.00104025]
[1733215254701,0.45449502,95496.0,95495.0,0.00104025]
[1733215255818,0.45849502,95496.0,95495.0,0.00104025]
[1733215260443,0.214432,95496.0,95495.0,0.00104025]
[1733215260866,0.005,95496.0,95495.0,0.00104025]
[1733215262447,0.005,95496.0,95495.0,0.00289362]
[1733215262664,0.29991316,95500.0,95496.0,0.209432]
[1733215262887,0.29991316,95500.0,95498.0,0.209428]
[1733215263119,0.29991316,95500.0,95498.0,0.21128125]
[1733215263555,0.29991316,95500.0,95499.0,0.1283]
[1733215263763,0.29991316,95500.0,95499.0,0.41046753]
[1733215263984,0.29991316,95500.0,95499.0,0.41046742]
[1733215264841,0.29991316,95500.0,95499.0,0.1283]
[1733215265929,0.29991316,95500.0,95499.0,0.1313]
[1733215266721,0.29991316,95500.0,95499.0,0.1333]
[1733215268571,0.29991316,95500.0,95499.0,0.31409024]
[1733215268777,0.29991316,95500.0,95499.0,0.31223698]
[1733215270712,0.29991316,95500.0,95499.0,0.72878459]
[1733215271556,0.29991316,95500.0,95499.0,0.31223698]
[1733215271758,0.29991316,95500.0,95499.0,0.72874633]
[1733215271960,0.29991316,95500.0,95499.0,0.72874386]
[1733215272435,0.29991316,95500.0,95499.0,0.72878109]
[1733215272654,0.29991316,95500.0,95499.0,0.31223698]
[1733215273384,0.29991316,95500.0,95499.0,0.72878109]
[1733215273694,0.29991316,95500.0,95499.0,0.31223698]
[1733215274400,0.29991316,95500.0,95499.0,0.72880563]
[1733215274801,0.29991316,95500.0,95499.0,0.31223698]
[1733215276008,0.29991316,95500.0,95499.0,0.72880563]
[1733215276225,0.29991316,95500.0,95499.0,0.31223698]
[1733215278634,0.2985257,95500.0,95499.0,0.30923698]
[1733215278842,0.2985257,95500.0,95499.0,0.30723698]
[1733215279084,0.2985257,95500.0,95499.0,0.31023698]
[1733215279494,0.2995257,95500.0,95499.0,0.31523698]
[1733215280108,0.27487822,95500.0,95499.0,0.46523698]
[1733215280327,0.27487822,95500.0,95499.0,0.49785008]
[1733215280538,0.26349335,95500.0,95499.0,0.49785008]
[1733215280784,0.18539335,95500.0,95499.0,0.49785008]
[1733215281208,0.18539335,95500.0,95499.0,0.46523698]
[1733215281209,0.13539335,95500.0,95499.0,0.46523698]
[1733215281451,0.13539335,95500.0,95499.0,1.19783158]
[1733215281669,0.13439335,95500.0,95499.0,1.19283158]
[1733215281916,0.13539335,95500.0,95499.0,1.19883158]
[1733215282619,0.13539335,95500.0,95499.0,1.26908219]
[1733215282827,0.13439335,95500.0,95499.0,1.26008219]
[1733215283041,0.13439335,95500.0,95499.0,1.27808219]
[1733215283042,0.00829335,95500.0,95499.0,1.27808219]
[1733215283489,0.0017278,95501.0,95500.0,0.65266098]
[1733215283722,0.0017278,95501.0,95500.0,1.45550619]
[1733215285911,0.0017278,95501.0,95500.0,1.45750619]
[1733215286375,0.0017278,95501.0,95500.0,1.45850619]
[1733215290062,0.0017278,95501.0,95500.0,1.45750619]
[1733215290480,0.0017278,95501.0,95500.0,1.45850619]
[1733215290913,0.0017278,95501.0,95500.0,0.75850619]
[1733215291130,0.0017278,95501.0,95500.0,0.75650619]
[1733215291358,0.0017278,95501.0,95500.0,0.75950619]
[1733215291571,0.0017278,95501.0,95500.0,0.60650619]
[1733215291995,0.0017278,95501.0,95500.0,0.60950619]
[1733215292422,0.0017278,95501.0,95500.0,1.02042168]
[1733215292653,0.0027278,95501.0,95500.0,0.61550619]
[1733215292860,0.0017278,95501.0,95500.0,0.75650619]
[1733215293068,0.076,95532.0,95527.0,0.15593698]
[1733215293278,0.076,95532.0,95529.0,0.232358]
[1733215293486,0.076,95532.0,95531.0,0.023]
[1733215293718,0.076,95532.0,95531.0,0.12769781]
[1733215294149,0.076,95532.0,95531.0,0.12584521]
[1733215294359,0.07658588,95532.0,95531.0,0.12769783]
[1733215294567,0.07658588,95532.0,95531.0,0.28363481]
[1733215294774,0.07658588,95532.0,95531.0,0.28178219]
[1733215295613,0.07658588,95532.0,95531.0,0.28678219]
[1733215296290,0.07658588,95532.0,95531.0,0.28978219]
[1733215296771,0.00058588,95532.0,95531.0,0.28978219]
[1733215298134,0.00231328,95532.0,95531.0,0.28978219]
[1733215301251,0.00231328,95532.0,95531.0,0.59727639]
[1733215301689,0.00231328,95532.0,95531.0,0.13384521]
[1733215301690,0.08011328,95532.0,95531.0,0.13384521]
[1733215302418,0.08011328,95532.0,95531.0,0.10784521]
[1733215302920,0.08011328,95532.0,95531.0,0.10984521]
[1733215303352,0.08011328,95532.0,95531.0,0.10784521]
[1733215304003,0.08011328,95532.0,95531.0,0.10284521]
[1733215304221,0.08011328,95532.0,95531.0,0.10484521]
[1733215304449,0.08011328,95532.0,95531.0,0.10784521]
[1733215304664,0.08011328,95532.0,95531.0,0.10484521]
[1733215305083,0.08011328,95532.0,95531.0,0.10784521]
[1733215305540,0.08011328,95532.0,95531.0,0.10584521]
[1733215305978,0.08011328,95532.0,95531.0,0.10884521]
[1733215306202,0.08011328,95532.0,95531.0,0.10584521]
[1733215307123,0.08011328,95532.0,95531.0,0.10284521]
[1733215307553,0.08011328,95532.0,95531.0,0.10884521]
[1733215307991,0.08011328,95532.0,95531.0,0.10484521]
[1733215308199,0.08011328,95532.0,95531.0,0.10784521]
[1733215308854,0.07898665,95532.0,95531.0,0.10784521]
[1733215309076,0.32538665,95532.0,95531.0,0.10784521]
[1733215309302,0.35903204,95532.0,95531.0,0.005]
[1733215309765,0.35903204,95532.0,95531.0,0.28662682]
[1733215309973,0.35903204,95532.0,95531.0,0.003]
[1733215310189,0.35903204,95532.0,95531.0,0.28467457]
[1733215310395,0.35903204,95532.0,95531.0,0.003]
[1733215310618,0.35903204,95532.0,95531.0,0.005]
[1733215310824,0.35903204,95532.0,95531.0,0.002]
[1733215311035,0.35903204,95532.0,95531.0,0.005]
[1733215311254,0.35903204,95532.0,95531.0,0.002]
[1733215311691,0.36203204,95532.0,95531.0,0.002]
[1733215312573,0.341882,95519.0,95518.0,0.28177038]
[1733215312788,0.209384,95518.0,95515.0,0.28177038]
[1733215313078,0.209384,95518.0,95516.0,0.10284521]
[1733215313936,0.209384,95518.0,95514.0,0.28177038]
[1733215314383,0.209384,95518.0,95513.0,0.28177038]
[1733215314809,0.209384,95518.0,95516.0,0.004]
[1733215315032,0.209384,95518.0,95514.0,0.28177038]
[1733215315265,0.418778,95516.0,95512.0,0.28177038]
[1733215315493,0.418778,95516.0,95472.0,0.50927362]
[1733215315494,0.209408,95508.0,95500.0,0.41617622]
[1733215315711,0.409404,95509.0,95507.0,0.28193584]
[1733215316146,0.409404,95509.0,95506.0,0.28193584]
[1733215317272,0.201,95509.0,95507.0,0.005]
[1733215317494,0.2,95508.0,95507.0,0.005]
[1733215318592,0.2,95508.0,95507.0,0.009]
[1733215319017,0.2,95508.0,95506.0,0.30993721]
[1733215319018,0.209408,95507.0,95506.0,0.30993721]
[1733215319233,0.333908,95507.0,95506.0,0.30993721]
[1733215319496,0.333908,95507.0,95506.0,0.30493721]
[1733215319924,0.333908,95507.0,95506.0,0.28193721]
[1733215319925,0.533908,95507.0,95506.0,0.28193721]
[1733215320133,0.2797,95506.0,95505.0,0.28193721]
[1733215320833,0.2,95505.0,95501.0,0.28193721]
[1733215321094,0.618826,95505.0,95500.0,0.0008637]
[1733215321743,0.418834,95503.0,95500.0,0.0008637]
[1733215322181,0.2,95501.0,95500.0,0.0008637]
[1733215322406,0.278,95501.0,95500.0,0.0008637]
[1733215322839,0.278,95501.0,95500.0,0.00144958]
[1733215323294,0.278,95501.0,95500.0,0.00344958]
[1733215323489,0.3272,95501.0,95500.0,0.00344958]
[1733215323700,0.3272,95501.0,95500.0,0.00144958]
[1733215323916,0.3272,95501.0,95500.0,0.00244958]
[1733215325448,0.3272,95501.0,95500.0,0.00144958]
[1733215325673,0.3292,95501.0,95500.0,0.00144958]
[1733215327013,0.3272,95501.0,95500.0,0.00144958]
[1733215327491,0.3282,95501.0,95500.0,0.00144958]
[1733215327721,0.3272,95501.0,95500.0,0.00144958]
[1733215327943,0.3282,95501.0,95500.0,0.00144958]
[1733215328397,0.3272,95501.0,95500.0,0.00144958]
[1733215328905,0.37426302,95501.0,95500.0,0.00144958]
[1733215329558,0.536724,95500.0,95499.0,0.0008637]
[1733215329767,0.536724,95500.0,95499.0,0.00103985]
[1733215329975,0.686724,95500.0,95499.0,0.00103985]
[1733215331265,0.694724,95500.0,95499.0,0.00203985]
[1733215334138,0.73878702,95500.0,95499.0,0.00203985]
[1733215335504,0.58878702,95500.0,95499.0,0.00203985]
[1733215340304,0.544724,95500.0,95499.0,0.00203985]
[1733215340799,0.3353,95500.0,95499.0,0.00203985]
[1733215341043,0.008,95500.0,95499.0,0.00203985]
[1733215341270,0.208,95500.0,95499.0,0.00203985]
[1733215341551,0.008,95500.0,95499.0,0.00203985]
[1733215341791,0.208,95500.0,95499.0,0.00203985]
[1733215342528,0.2,95500.0,95499.0,0.00103985]
[1733215342757,0.208,95500.0,95499.0,0.00203985]
[1733215343238,0.206,95500.0,95499.0,0.00203985]
[1733215343694,0.207,95500.0,95499.0,0.00203985]
[1733215343972,0.416424,95500.0,95499.0,0.00203985]
[1733215344196,0.410424,95500.0,95499.0,0.00103985]
[1733215344426,0.203,95500.0,95499.0,0.00103985]
[1733215344849,0.003,95500.0,95499.0,0.00103985]
[1733215345070,0.203,95500.0,95499.0,0.00103985]
[1733215346399,0.20272252,95500.0,95499.0,0.00103985]
[1733215347341,0.28152252,95500.0,95499.0,0.00103985]
[1733215348290,0.28324992,95500.0,95499.0,0.00103985]
[1733215351715,0.20444992,95500.0,95499.0,0.00103985]
[1733215351958,0.00444992,95500.0,95499.0,0.02943601]
[1733215352167,0.20444992,95500.0,95499.0,0.1571486]
[1733215352374,0.00444992,95500.0,95499.0,0.1571486]
[1733215353026,0.00444992,95500.0,95499.0,0.12875244]
[1733215353252,0.00444992,95500.0,95499.0,0.40994602]
[1733215353487,0.00444992,95500.0,95499.0,0.12875244]
[1733215354842,0.00444992,95500.0,95499.0,0.13060561]
[1733215364718,0.00440233,95500.0,95499.0,0.13060561]
[1733215366264,0.00440233,95500.0,95499.0,0.12875244]
[1733215367825,0.00440233,95500.0,95499.0,0.00103985]
[1733215373409,0.00440233,95500.0,95499.0,0.12875244]
[1733215377079,0.00440233,95500.0,95499.0,0.13060562]
[1733215377288,0.00440233,95500.0,95499.0,0.54731205]
[1733215377529,0.00440233,95500.0,95499.0,0.64829033]
[1733215377753,0.00440233,95500.0,95499.0,0.2315839]
[1733215378638,0.00440233,95500.0,95499.0,0.12875244]
[1733215378868,0.00440233,95500.0,95499.0,0.13060562]
[1733215379553,0.00440233,95500.0,95499.0,0.12875244]
[1733215380003,0.00440233,95500.0,95499.0,0.00103985]
[1733215380004,0.05170233,95500.0,95499.0,0.00103985]
[1733215380241,0.25170233,95500.0,95499.0,0.00103985]
[1733215383223,0.25170233,95500.0,95499.0,0.41794703]
[1733215383434,0.25170233,95500.0,95499.0,0.04300737]
[1733215383647,0.20440233,95500.0,95499.0,0.41817011]
[1733215384330,0.20440233,95500.0,95499.0,0.00103985]
[1733215390782,0.20440233,95500.0,95499.0,0.12875244]
[1733215393655,0.00440233,95500.0,95499.0,0.12875244]
[1733215393887,0.28180233,95500.0,95499.0,0.12875244]
[1733215395003,0.28180233,95500.0,95499.0,0.02403985]
[1733215395243,0.28180233,95500.0,95499.0,0.00103985]
[1733215395928,0.32900233,95500.0,95499.0,0.00103985]
[1733215399407,0.32900233,95500.0,95499.0,0.41866778]
[1733215399614,0.32900233,95500.0,95499.0,0.00103985]
[1733215402498,0.37726191,95500.0,95499.0,0.00103985]
[1733215402702,0.32900233,95500.0,95499.0,0.00103985]
[1733215403935,0.37239042,95500.0,95499.0,0.00103985]
[1733215404141,0.37039042,95500.0,95499.0,0.00103985]
[1733215404351,0.37639042,95500.0,95499.0,0.00103985]
[1733215404795,0.37439042,95500.0,95499.0,0.00103985]
[1733215405218,0.37639042,95500.0,95499.0,0.00103985]
[1733215405664,0.37439042,95500.0,95499.0,0.00103985]
[1733215405923,0.37039042,95500.0,95499.0,0.00103985]
[1733215406140,0.52839042,95500.0,95499.0,0.00203985]
[1733215406590,0.52239042,95500.0,95499.0,0.00103985]
[1733215406814,0.52239042,95500.0,95495.0,1e-07]
[1733215406815,0.04406302,95496.0,95495.0,1e-07]
[1733215407048,0.51656302,95494.0,95493.0,2e-07]
[1733215407280,0.62127561,95494.0,95493.0,2e-07]
[1733215407519,0.57605002,95471.0,95465.0,0.282734]
[1733215407735,0.57605002,95471.0,95464.0,0.282734]
[1733215407736,0.2,95470.0,95464.0,0.282734]
[1733215407948,0.2,95470.0,95465.0,0.282734]
[1733215408182,0.2,95470.0,95460.0,0.282734]
[1733215408402,0.2,95470.0,95456.0,0.0008632]
[1733215408403,0.2,95470.0,95459.0,0.282734]
[1733215408630,0.2,95470.0,95456.0,0.2835972]
[1733215409070,0.20005852,95470.0,95456.0,0.0008632]
[1733215409511,0.20005852,95470.0,95456.0,0.28310148]
[1733215409715,0.20005852,95470.0,95456.0,0.0008632]
[1733215409960,0.20405852,95470.0,95456.0,0.0008632]
[1733215410397,0.20005852,95470.0,95456.0,0.0008632]
[1733215410613,0.20405852,95470.0,95456.0,0.0008632]
[1733215410853,0.20005852,95470.0,95456.0,0.0008632]
[1733215411283,0.20505852,95470.0,95456.0,0.0008632]
[1733215411703,0.20405852,95470.0,95456.0,0.0008632]
[1733215412139,0.20605852,95470.0,95456.0,0.0008632]
[1733215412552,0.20405852,95470.0,95456.0,0.0008632]
[1733215412797,0.20005852,95470.0,95456.0,0.0008632]
[1733215413729,0.20505852,95470.0,95469.0,0.0018637]
[1733215413944,0.20705852,95470.0,95469.0,0.0018637]
[1733215414164,0.20205852,95470.0,95469.0,0.0008637]
[1733215414386,0.20705852,95470.0,95469.0,0.0018637]
[1733215416777,0.20693226,95470.0,95469.0,0.0018637]
[1733215424026,0.25099528,95470.0,95469.0,0.0018637]
[1733215424281,0.47679528,95470.0,95469.0,0.0018637]
[1733215424511,0.52229528,95470.0,95469.0,0.0018637]
[1733215426434,0.19987374,95445.0,95433.0,0.023]
[1733215426671,0.02756737,95444.0,95435.0,0.023]
[1733215426906,0.02756737,95444.0,95437.0,0.023]
[1733215427140,0.209549,95443.0,95439.0,0.023]
[1733215427384,0.209549,95443.0,95439.0,0.12771259]
[1733215427627,0.19987374,95445.0,95441.0,0.023]
[1733215427869,0.40941774,95445.0,95442.0,0.00707697]
[1733215428113,0.61896274,95445.0,95442.0,0.00707697]
[1733215428343,0.40941774,95445.0,95440.0,0.023]
[1733215428581,0.209546,95444.0,95440.0,0.023]
[1733215430053,0.19987374,95445.0,95440.0,0.023]
[1733215430297,0.19987374,95445.0,95442.0,0.001]
[1733215430724,0.19987374,95446.0,95440.0,0.023]
[1733215431385,0.40941574,95446.0,95440.0,0.023]
[1733215431607,0.19987374,95446.0,95440.0,0.024]
[1733215431834,0.19987374,95447.0,95440.0,0.024]
[1733215432046,0.19987374,95446.0,95442.0,0.023]
[1733215432466,0.19987374,95446.0,95443.0,0.00714568]
[1733215433231,0.19987374,95446.0,95440.0,0.024]
[1733215433887,0.19987374,95447.0,95442.0,0.023]
[1733215434102,0.19987374,95446.0,95444.0,0.023]
[1733215434324,0.19987374,95446.0,95445.0,0.10471259]
[1733215434526,0.19987374,95448.0,95446.0,0.023]
[1733215434983,0.19987374,95448.0,95447.0,0.00711832]
[1733215435475,0.19987374,95448.0,95447.0,0.03011832]
[1733215436126,0.19987374,95450.0,95448.0,0.023]
[1733215436557,0.19987374,95450.0,95449.0,0.03010465]
[1733215436871,0.19987374,95451.0,95450.0,0.023]
[1733215437305,0.19987374,95451.0,95450.0,0.03009782]
[1733215437966,0.20087374,95451.0,95450.0,0.03009782]
[1733215438181,0.20387374,95451.0,95450.0,0.03009782]
[1733215438403,0.20287374,95451.0,95450.0,0.023]
[1733215438880,0.20287374,95451.0,95450.0,0.03009782]
[1733215439546,0.19987374,95451.0,95450.0,0.03009782]
[1733215439767,0.20187374,95451.0,95450.0,0.03009782]
[1733215440208,0.19987374,95451.0,95450.0,0.03009782]
[1733215440489,0.20187374,95451.0,95450.0,0.023]
[1733215441361,0.19987374,95451.0,95450.0,0.024]
[1733215441838,0.19987374,95451.0,95450.0,0.023]
[1733215442058,0.19987374,95451.0,95450.0,0.03009782]
[1733215442706,0.255706,95463.0,95450.0,0.03009782]
[1733215442707,0.19987374,95453.0,95450.0,0.03009782]